Cogmind - Beta 17 @@@ ROGUE MODE // 2026.07.09 @ 16:53:33 Player: lxealomych Result: Destroyed by T6-R1E(j) with Overtuned Pulse Rifle Performance ------------- Evolutions (0) 0 Regions Visited (3) 600 Robots Destroyed (8) 40 Value Destroyed (143) 143 Prototype IDs (0) 0 Alien Tech Used (0) 0 Bonus (-137) -137 TOTAL SCORE: 646 Bonus ------- Friendly Fire -137 Cogmind --------- Core Integrity 0/250 Matter 300/300 Energy 76/100 System Corruption 1% Temperature Cool (12) Movement Core (100) Ox1 Location -9/Scraptown Parts ------- > --- POWER (1) -------- (None) > --- PROPULSION (2) --- (None) > --- UTILITY (2) ------ Small Storage Unit > --- WEAPON (2) ------- (None) > --- INVENTORY (8) ---- Ion Engine Aluminum Leg Aluminum Leg Scrap Suit Peak State ------------ > --- POWER ------------ Ion Engine > --- PROPULSION ------- Overtuned Titanium Leg Overtuned Titanium Leg > --- UTILITY ---------- Small Storage Unit Large Battery > --- WEAPON ----------- Rocket Launcher CPS Tube > --- INVENTORY -------- Ion Engine Aluminum Leg Aluminum Leg Aluminum Leg Light Armor Plating Overtuned Pulse Rifle Assault Rifle EMP Blaster [Rating: 15] Favorites ----------- Power Ion Engine Engine Ion Engine Propulsion Aluminum Leg Treads Light Treads Leg Aluminum Leg Utility Small Storage Unit Storage Small Storage Unit Protection Light Armor Plating Weapon Assault Rifle Energy Gun Small Laser Ballistic Gun Assault Rifle Launcher EMP Blaster Special Weapon CPS Tube Build | -11 -10 -10 -9 ------- Run | Yrd Mat Sub Scr Slots Evolved . | . . . . Power . | . . . . Propulsion . | . . . . Utility . | . . . . Weapon . | . . . . Parts Attached 20 | 6 4 2 8 Power 3 | 1 2 . . Engine 3 | 1 2 . . Core . | . . . . Reactor . | . . . . Propulsion 6 | 2 . 2 2 Treads 2 | 2 . . . Leg 4 | . . 2 2 Wheel . | . . . . Hover . | . . . . Flight . | . . . . Utility 4 | 1 2 . 1 Device . | . . . . Storage 3 | 1 2 . . Processor . | . . . . Hackware . | . . . . Protection 1 | . . . 1 Artifact . | . . . . Weapon 7 | 2 . . 5 Energy Gun 2 | 1 . . 1 Energy Cannon . | . . . . Ballistic Gun 2 | 1 . . 1 Ballistic Cannon . | . . . . Launcher 2 | . . . 2 Special Weapon 1 | . . . 1 Impact Weapon . | . . . . Slashing Weapon . | . . . . Piercing Weapon . | . . . . Special Melee Weapon . | . . . . Unidentified Prototypes . | . . . . Parts Lost 2 | . . . 2 Power . | . . . . Propulsion . | . . . . Utility 1 | . . . 1 Weapon 1 | . . . 1 Highest Loss Streak 2 | . . . 2 To Critical Strikes . | . . . . Average Backups 7 | 4 7 7 7 Power . | . . 1 1 Propulsion 2 | 2 2 2 2 Utility 1 | . 2 2 1 Weapon 2 | 1 1 2 2 Tool/Special . | . . . . Unused Backups 8 | . 1 1 6 Power 1 | . . . 1 Propulsion 3 | . . . 3 Utility 2 | . 1 . 1 Weapon 2 | . . 1 1 Tool/Special . | . . . . Average Slot Usage (%) 92 | . 94 100 88 Engine 13 | . 14 14 13 Treads 11 | . 28 18 . Leg 15 | . . 9 27 Storage 25 | . 23 28 25 Protection 1 | . . . 2 Energy Gun 7 | . 14 14 . Ballistic Gun 7 | . 14 14 . Launcher 6 | . . . 13 Special Weapon 2 | . . . 4 Peak Build Rating 15 | 6 7 7 15 Average Rating 7 | 4 6 6 8 On Entrance 5 | . 6 7 7 Avg Prop Armor Cover (%) 8 | . . . 8 Naked Turns . | . . . . Heaviest Build 21 | 11 16 16 21 Greatest Support 40 | 40 40 40 38 Greatest Overweight (x) 5 | . . . 5 Average Overweight (x) . | . . . . Largest Inventory Capacity 25 | 8 25 8 8 Average Capacity 7 | 7 8 8 8 Most Carried 8 | 7 8 8 8 Average Carried 7 | 4 7 7 7 Final Capacity 8 | 8 8 8 8 Final Carried 8 | 4 8 8 5 Class Distribution -------------------- 100% | Mutant Dominant Class ---------------- Mutant | -10/Materials Mutant | -10/Subcaves Mutant | -9/Scraptown Resources | -11 -10 -10 -9 ----------- Run | Yrd Mat Sub Scr Matter Collected 530 | 234 139 28 129 Remotely . | . . . . Salvage Created 245 | . 183 . 62 Parts 18 | . 13 . 5 Haulers Intercepted . | . . . . Recyclers Shooed . | . . . . Parts Field Recycled . | . . . . Retrieved Matter . | . . . . Parts Self-Destructed 14 | . . 14 . Prevented . | . . . . Parts Restored . | . . . . Kills | -11 -10 -10 -9 ------- Run | Yrd Mat Sub Scr Combat Hostiles Destroyed 5 | . 5 . . Guns 5 | . 5 . . Classes Destroyed 4 | . 3 . 1 Watcher 2 | . 2 . . Swarmer 3 | . 3 . . Grunt 2 | . 2 . . Scrapper 1 | . . . 1 Best Kill Streak 2 | . 2 . . Combat Bots Only 2 | . 2 . . Max Kills in Single Turn 1 | . 1 . 1 Gunslinging . | . . . . Exploded . | . . . . Melee . | . . . . Uniques/NPCs Destroyed . | . . . . Combat | -11 -10 -10 -9 -------- Run | Yrd Mat Sub Scr Hostile Shots Fired 130 | . 27 . 103 Missed 28 | . 9 . 19 Hits 102 | . 18 . 84 Melee 78 | . . . 78 Projectile 24 | . 18 . 6 Critical Strikes 1 | . . . 1 Damage Taken 905 | . 251 9 645 Core 269 | . 43 . 226 Absorbed by Shields . | . . . . Regen/Repaired (Parts) 10 | . . . 10 Core Remaining (%) 100 | 100 . . . Volleys Fired 25 | . 21 . 4 Largest 2 | . 2 . 1 Hottest 80 | . 60 . 80 Shots Fired 46 | . 42 . 4 Gun 44 | . 42 . 2 Cannon . | . . . . Launcher 2 | . . . 2 Special . | . . . . Kinetic 23 | . 21 . 2 Thermal 21 | . 21 . . Explosive 1 | . . . 1 Electromagnetic 1 | . . . 1 Robot Hit Streak 11 | . 11 . 5 Robot Miss Streak 3 | . 3 . . Penetration Max . | . . . . Secondary Targets . | . . . . Shots Hit Robots 31 | . 27 . 4 Core Hits 15 | . 11 . 4 Critical Kills . | . . . . Critical Parts Destroyed . | . . . . Critical Strikes . | . . . . Melee Attacks . | . . . . Impact . | . . . . Slashing . | . . . . Piercing . | . . . . Sneak Attacks . | . . . . Combat Hostiles . | . . . . Follow-up Attacks . | . . . . Damage Inflicted 428 | . 323 . 105 Guns 347 | . 323 . 24 Cannons . | . . . . Explosions 74 | . . . 74 Melee . | . . . . Ramming 7 | . . . 7 Kinetic 218 | . 194 . 24 Thermal 129 | . 129 . . Explosive 37 | . . . 37 Electromagnetic 37 | . . . 37 Impact . | . . . . Slashing . | . . . . Piercing . | . . . . Highest Corruption 1 | . 1 1 1 Average Corruption 1 | . 1 1 1 Corruption Purged . | . . . . Corruption Blocked . | . . . . Effects 13 | . 2 3 8 Message Errors 2 | . . 1 1 Matter Fused 3 | . . 1 2 Heat Flow Errors 1 | . . . 1 Energy Discharges 2 | . 1 . 1 Parts Fused 1 | . . . 1 Data Loss (minor) 3 | . 1 1 1 Misfires 1 | . . . 1 Overload Shots . | . . . . Overflow Damage . | . . . . Projectiles . | . . . . Explosions . | . . . . Melee . | . . . . Knockbacks . | . . . . Impact . | . . . . Kinetic . | . . . . Secondary . | . . . . Self-Inflicted Damage 33 | . . . 33 Shots 2 | . . . 2 Rammed 4 | . . . 4 Targets Rammed 4 | . . . 4 Kicked . | . . . . Crushed . | . . . . Highest Temperature 277 | . 45 . 277 Average Temperature 69 | . 27 . 115 Received Heat Transfer 63 | . 45 6 12 Effects 1 | . . . 1 Energy Bleed 1 | . . . 1 Siege Activations . | . . . . Martial Activations . | . . . . Shielding Activations . | . . . . Robots Disrupted . | . . . . Combat Hostiles . | . . . . Robots Corrupted . | . . . . Combat Hostiles . | . . . . Parts Fried . | . . . . Impact Corruptions . | . . . . Robots Melted . | . . . . Combat Hostiles . | . . . . Parts Melted 1 | . 1 . . Heat Transferred 300 | . 300 . . Parts Sabotaged . | . . . . Parts Stolen 7 | . . . 7 Parts Stripped . | . . . . Power Chain Reactions . | . . . . Alert | -11 -10 -10 -9 ------- Run | Yrd Mat Sub Scr Maximum Alert Level . | . . . . Low Security (%) 100 | 100 100 . . Level 1 . | . . . . Level 2 . | . . . . Level 3 . | . . . . Level 4 . | . . . . Level 5 . | . . . . High Security . | . . . . Max Security . | . . . . Peak Influence 55 | . 55 . . Initial . | . . . . Average 11 | . 14 . . Influence Increases 165 | . 150 15 . Destroy 0b10 Robot/C 100 | . 100 . . Destroy 0b10 Robot/NC 10 | . 10 . . Destroy Leader 24 | . 24 . . Destroy Structure 1 | . 1 . . Lose Combat Pursuer 30 | . 15 15 . Influence Decreases 165 | . 136 29 . Entered New Map 7 | . . 7 . Time Decay 113 | . 91 22 . Purge Threat 45 | . 45 . . Squads Dispatched 1 | . 1 . . Investigation . | . . . . Extermination . | . . . . Reinforcement 1 | . 1 . . Assault . | . . . . Garrison . | . . . . Intercept . | . . . . Searches Triggered . | . . . . Construction Impeded . | . . . . Haulers Reinforced . | . . . . Active Scanning Responses . | . . . . Cargo Convoy Interrupts . | . . . . Stealth | -11 -10 -10 -9 --------- Run | Yrd Mat Sub Scr Distress Signals 2 | . 2 . . Communications Jammed . | . . . . Distress Signals . | . . . . Times Spotted 21 | . 11 2 8 Peak Tracking Total 11 | . 5 2 11 Tactical Retreats 3 | . 1 1 1 Traps | -11 -10 -10 -9 ------- Run | Yrd Mat Sub Scr Traps Triggered 1 | . 1 . . Indirectly . | . . . . Trap Hack Attempts . | . . . . Triggered . | . . . . Disarmed . | . . . . Reprogrammed . | . . . . Reused . | . . . . Traps Extracted . | . . . . Installed . | . . . . Triggered . | . . . . Machines | -11 -10 -10 -9 ---------- Run | Yrd Mat Sub Scr Machines Disabled 4 | . . . 4 Max in Single Turn 2 | . . . 2 Machines Repaired . | . . . . Machines Dismantled . | . . . . Machines Sabotaged . | . . . . Overloaded Fab Kills . | . . . . Hacking | -11 -10 -10 -9 --------- Run | Yrd Mat Sub Scr Machines Accessed 3 | . 2 . 1 Terminals 1 | . 1 . . Fabricators . | . . . . Repair Stations . | . . . . Recycling Units 1 | . 1 . . Scanalyzers . | . . . . Garrison Access . | . . . . Total Hacks 11 | . 2 . 9 Successful 11 | . 2 . 9 Failed . | . . . . Catastrophic . | . . . . Database Lockouts . | . . . . Manual 1 | . 1 . . Terminals 1 | . 1 . . Fabricators . | . . . . Repair Stations . | . . . . Recycling Units 1 | . 1 . . Scanalyzers . | . . . . Garrison Access . | . . . . Terminal Hacks 10 | . 1 . 9 Record 9 | . . . 9 Unreport Threat 1 | . 1 . . Fabricator Hacks . | . . . . Repair Station Hacks . | . . . . Recycling Unit Hacks 1 | . 1 . . Report Inventory 1 | . 1 . . Scanalyzer . | . . . . Garrison Access Hacks . | . . . . Unauthorized Hacks . | . . . . Terminals . | . . . . Fabricators . | . . . . Repair Stations . | . . . . Recycling Units . | . . . . Scanalyzers . | . . . . Garrison Access . | . . . . Data Cores Recovered . | . . . . Used . | . . . . Hacking Detections . | . . . . Full Trace Events . | . . . . Feedback Events . | . . . . Feedback Blocked . | . . . . Robot Schematics Acquired . | . . . . Robots Built . | . . . . Authchips . | . . . . Time . | . . . . Total Robot Build Rating . | . . . . Part Schematics Acquired . | . . . . Parts Built . | . . . . Authchips . | . . . . Time . | . . . . Total Part Build Rating . | . . . . Part Studies Acquired . | . . . . Parts Repaired . | . . . . Time . | . . . . Parts Recycled . | . . . . Recycled Matter . | . . . . Retrieved Matter . | . . . . Retrieved Components . | . . . . Parts Scanalyzed . | . . . . Part Schematics Acquired . | . . . . Parts Damaged . | . . . . Bothacking | -11 -10 -10 -9 ------------ Run | Yrd Mat Sub Scr Used RIF Installer . | . . . . Robots Hacked . | . . . . Non-combat . | . . . . Combat . | . . . . Robot Hacks Applied . | . . . . Relay Couplers Released . | . . . . Fabnet Peak Effective % . | . . . . Robots Rewired . | . . . . Allies Hacked . | . . . . Hacks Repelled . | . . . . Allies | -11 -10 -10 -9 -------- Run | Yrd Mat Sub Scr Total Allies . | . . . . Largest Group . | . . . . Highest-Rated Group . | . . . . Highest-Rated Ally . | . . . . Total Orders . | . . . . Ally Attacks . | . . . . Total Damage . | . . . . Kills . | . . . . Allies Corrupted . | . . . . Allies Melted . | . . . . Intel | -11 -10 -10 -9 ------- Run | Yrd Mat Sub Scr Active Infowar (turns) . | . . . . Robot Analysis Total . | . . . . Derelict Logs Recovered . | . . . . Drone Launches . | . . . . Drone Recoveries . | . . . . Exploration | -11 -10 -10 -9 ------------- Run | Yrd Mat Sub Scr Turns Passed 1930 | 127 569 296 938 Spaces Moved 1260 | 73 302 188 697 Core 46 | 13 . . 33 Treads 465 | 60 302 103 . Legs 749 | . . 85 664 Wheels . | . . . . Hover . | . . . . Flight . | . . . . Fastest Speed 50 | 50 160 120 100 Average Speed 138 | 140 160 141 127 Slowest Speed 300 | 160 160 160 300 Overloaded Moves . | . . . . Propulsion Burnouts . | . . . . Robots Hopped . | . . . . Potential Cave-ins . | . . . . Cave-ins Triggered . | . . . . Exploration Rate (%) 32 | 5 48 23 52 Regions Visited 3 Branch Regions 2 Pre-discovered Areas 1 | . . . 1 Known Exits Taken . | . . . . Unknown Exits Taken 3 | 1 1 1 . Scrap Searched 3 | . . . 3 Spaces Dug . | . . . . Terrain Destroyed 6 | . . . 6 Melee . | . . . . Projectile . | . . . . AOE 6 | . . . 6 Terrain Rammed . | . . . . Walls Destroyed . | . . . . Machines Disabled . | . . . . Actions | -11 -10 -10 -9 --------- Run | Yrd Mat Sub Scr Total 1406 | 97 347 218 744 Wait 59 | 10 9 23 17 Move 1257 | 72 301 187 697 Hop . | . . . . Pick Up 21 | 9 6 3 3 Fast Attach 6 | 1 2 . 3 Attach 12 | 5 1 2 4 Detach 1 | . 1 . . Swap 5 | . 2 . 3 Drop 16 | . 4 3 9 Fire 25 | . 21 . 4 Melee . | . . . . Ram 4 | . . . 4 Kick . | . . . . Crush . | . . . . Escape Stasis . | . . . . Rewire . | . . . . Trap . | . . . . Miscellaneous . | . . . . Route ------- -11/Scrapyard -10/Materials (discovered 3 exits: [*Min x2] / [*Sub]) -10/Subcaves (discovered 2 exits: [*Rec] / *Scr) -9/Scraptown (discovered 1 exit: [*Fac]) History --------- Turn | Location | Event 2 | -11/Scrapyard | Met Revision 17 4 | -11/Scrapyard | Discovered new exit (range 15) 128 | -11/Scrapyard | Entered Materials 129 | -10/Materials | Met a group of wandering Federalists 203 | -10/Materials | Discovered new exit (range 9) 228 | -10/Materials | Discovered new exit (range 12) 300 | -10/Materials | Build established: Mutant 450 | -10/Materials | Discovered new exit (range 13) 697 | -10/Materials | Entered Subcaves 698 | -10/Subcaves | Continued accompanying wandering Federalists (5) 884 | -10/Subcaves | Discovered new exit (range 12) 916 | -10/Subcaves | Lost 4 allies 972 | -10/Subcaves | Wandering Federalist uncovered a shortcut to Scraptown 993 | -10/Subcaves | Entered Scraptown 1045 | -9/Scraptown | Learned location of Extension (-5) 1134 | -9/Scraptown | Heard Great Nut preacher, LISTEN AND RECITE! 1318 | -9/Scraptown | Discovered new exit (range 5) 1415 | -9/Scraptown | Visited CR-KLE's Repair Center 1423 | -9/Scraptown | CR-KLE repaired 1 part 1458 | -9/Scraptown | Visited TADAMA 1760 | -9/Scraptown | Attacked by Scraptown defenders 1773 | -9/Scraptown | Found Scrap Suit 1929 | -9/Scraptown | Core integrity fell below 50% 1931 | -9/Scraptown | Destroyed by T6-R1E(j) with Overtuned Pulse Rifle Last Messages --------------- 01921_ GT-PGZ(r) follow-up attacks with Ripteeth. 01922_ Machine disabled. 01923_ EMP Blaster ripped off. 01923_ 50-T49(r) follow-up attacks with Ripteeth. 01923_ Penetrated by Siege Slug. 01923_ Lgt. Armor Plating destroyed. 01923_ Knocked back. 01923_ Penetrated by Siege Slug. 01924_ Acquired 30 matter. 01925_ Slammed into GT-PGZ(r). 01926_ Triborg exits siege mode. 01926_ Slammed into GT-PGZ(r). 01928_ Slammed into Triborg. 01929_ Triborg activates siege mode. 01929_ Penetrated by Siege Slug. 01929_ Knocked back. 01931_ Penetrated by Siege Slug. 01931_ Knocked back. 01931_ Penetrated by Siege Slug. 01931_ Siege Slug penetrates Wall. Map ----- +----------------------------------------------------+ | #"" """### #????????"""" ??#""" ?????# #?? | | #"" "#?# #??????? "" ??# " "???# #?? | | #"" "#?# #?????? " #?# " ""#??# #?? | | #"" "#?# #?????" " #?# " """#??# #?? | | #"% "#?# #?????" " #?# " ""???# #?? | | #"= "#?# #?????" ? #?###? "???# #?? | | #""""""#?# [[#??????? "??#????? " "???# #?? | | ########?# #????????"""?????????""""""???# #?? | | ?#####???# #?????????????????????#?##????# #?? | | ?#"""#???# #?????????????????????????????# #?? | | ?#" "#???# #????????????????????????###### #?? | | ?# #???# #??????????????????????"""""""" #?? | | ?# ##### #?????????????????????""" """"" #?? | | ?# ##???????????###????"""" " "" #?? | | ?# #???????????# ? #?? | | ?# ##???###??#### ##???"" "" "" " #?? | | ?##### ### ##???"""""?#""" "#?????""""""""" #?? | | ?????# #?###???#"" ""##""" "#???????""""""" #?? | | ###### ######??#"" "##""" "#????????###### #?? | | #""""" """""#??#" ""##"" "#?############" #?? | | #"""%" " "#??#"" ""##"" "#?#"""""""""" # #?? | | #" !] "#??#"" ""##" "#?#""! !! [! "# #?? | | #""""" """""#??#"" ""##"|! "#?#""[!!! "# #?? | | ###### ######??#" ""##"" "#?# " "# #?? | | ###### #########"" "";;"" ""### """"""# #?? | | j @ rr% r E #?? | | %%TT #?? | | """"######"""" """""######"""=TT " """#####?? | | """#????#" "#????#"" % | ## "#?????? | | ""#????#" "#????#" " ##"" "#?????? | | "#????#" [! "#????#" ""##" "#?????? | | " "#????#""""" "#????#" "#?????? | | """""#????#""""""""""#????#"""""""##"""""""#?????? | | ######????############????##################?????? | | | | | | | | | | | | | | | | | | | | | | | | | | | | | | | | | +----------------------------------------------------+ Best States ------------- Heat Dissipation 25 Energy Generation 10 Energy Capacity 450 Matter Stores 300 Matter Capacity 300 Sight Range 16 Terrain Scan Density 10 Armor Coverage 150 Evasion (%) 55 Recoil Reduction 2 Item Schematics ----------------- None Robot Schematics ------------------ None Fabricated ------------ Nothing Repaired ---------- Nothing Studied --------- None Alien Tech Used ----------------- None Achievements -------------- Civilization 2243 My Bad Strength In Numbers Challenges ------------ None Game ------ Seed ShrapnelTractorRigger Manual? 0 Play Time 00:25:52 Cumulative 8.2 hours Start 2026.07.09 @ 16:25:52 End 2026.07.09 @ 16:53:33 Sessions 1 Manual Loads 0 Difficulty Rogue Special Mode None Game No. 8 Rogue 5 Adventurer 3 Explorer 0 Win Type - Total 0 Types 0/0/0/0/0/0/0/0/0/0 Lore% 6 Gallery% 13 Achievement% 12 Wizard Run 0 Options --------- Layout 0 ASCII 0 Keyboard 0 Movement Mouse Keybinds 0 Fullscreen 1 Font 18/SmallcapsGlow Map View 76x50 Zoom Use 0% Tactical HUD 1 Map Filters NONE Filters NONE Steam 1 RUN: 2220133a-bfec-48fa-a80d-e2b5e3aba8cb